bitfinex-derivatives/quotes_BTCF0:USTF0_20250506
["timestamp","ask_amount","ask_price","bid_price","bid_amount"]
[1746516900270,0.2427868,94538.0,94537.0,0.24627577]
[1746516900465,0.2447868,94538.0,94537.0,0.24627577]
[1746516901060,0.2467868,94538.0,94537.0,0.24427577]
[1746516902172,0.2467868,94538.0,94537.0,0.36227577]
[1746516902868,0.2145868,94538.0,94537.0,0.36227577]
[1746516904772,0.2135868,94538.0,94537.0,0.36227577]
[1746516905165,0.003,94538.0,94537.0,0.36227577]
[1746516905471,0.2135868,94538.0,94537.0,0.36227577]
[1746516905871,0.2135868,94538.0,94537.0,1.86227577]
[1746516906372,0.002,94538.0,94537.0,1.86227577]
[1746516907170,0.001,94538.0,94537.0,1.86427577]
[1746516907471,0.264453,94549.0,94548.0,0.2115622]
[1746516907672,0.264453,94549.0,94548.0,0.6668622]
[1746516907874,0.2115622,94549.0,94548.0,0.6668622]
[1746516908074,0.2115575,94552.0,94551.0,0.2115555]
[1746516908269,0.211552,94554.0,94553.0,0.211551]
[1746516908467,0.211552,94554.0,94553.0,1.773451]
[1746516909173,0.211552,94554.0,94553.0,1.891451]
[1746516910169,0.1057742,94556.0,94555.0,0.2115488]
[1746516910170,0.2115488,94556.0,94555.0,0.2115488]
[1746516911276,0.2115488,94556.0,94555.0,0.3295488]
[1746516911572,0.001,94556.0,94555.0,0.3295488]
[1746516911766,0.001,94556.0,94555.0,1.8295488]
[1746516911968,0.001,94556.0,94555.0,1.8305488]
[1746516913277,0.2115382,94560.0,94559.0,0.2115398]
[1746516913475,0.2115382,94560.0,94559.0,0.5723398]
[1746516914176,0.2115382,94560.0,94559.0,0.7553398]
[1746516914375,0.2135382,94560.0,94559.0,0.7553398]
[1746516914575,0.2145382,94560.0,94559.0,0.7553398]
[1746516915778,0.2135382,94560.0,94559.0,0.7553398]
[1746516915979,0.2145382,94560.0,94559.0,0.3945398]
[1746516916379,0.2125382,94560.0,94559.0,0.183]
[1746516916574,0.2453382,94560.0,94559.0,0.3945398]
[1746516916882,0.2765382,94560.0,94559.0,0.3945398]
[1746516925585,0.2453382,94560.0,94559.0,0.3945398]
[1746516929189,0.2453382,94560.0,94559.0,0.2765398]
[1746516930087,0.2453382,94560.0,94559.0,0.3945398]
[1746516934488,0.2115555,94552.0,94544.0,0.0528929]
[1746516934788,0.0338,94560.0,94546.0,0.0317]
[1746516934789,0.2115667,94547.0,94546.0,0.0317]
[1746516934984,0.2115667,94547.0,94546.0,0.2432689]
[1746516935183,0.2115667,94547.0,94546.0,0.3612689]
[1746516935584,0.2105667,94547.0,94546.0,0.3612689]
[1746516935782,0.2418667,94547.0,94546.0,0.3612689]
[1746516935989,0.2418667,94547.0,94546.0,1.8612689]
[1746516936187,0.2398667,94547.0,94546.0,1.8642689]
[1746516936591,0.2398667,94547.0,94546.0,1.8612689]
[1746516936791,0.2418667,94547.0,94546.0,1.8612689]
[1746516938490,0.2428667,94547.0,94546.0,1.8612689]
[1746516944588,0.2115667,94547.0,94546.0,1.8612689]
[1746516945301,0.003,94547.0,94546.0,1.8612689]
[1746516945493,0.2145667,94547.0,94546.0,1.8612689]
[1746516948002,0.2145667,94547.0,94546.0,1.8931689]
[1746516950603,0.2135667,94547.0,94546.0,1.8931689]
[1746516951401,0.002,94547.0,94546.0,1.8931689]
[1746516952505,0.001,94547.0,94546.0,1.8931689]
[1746516953605,0.211558,94551.0,94550.0,0.21156]
[1746516954106,0.2644435,94553.0,94552.0,0.2115555]
[1746516954303,0.2441333,94563.0,94562.0,0.2115331]
[1746516954604,0.2115354,94566.0,94565.0,0.2643988]
[1746516954995,0.2115354,94566.0,94565.0,1.7643988]
[1746516955196,0.2115354,94566.0,94565.0,1.8823988]
[1746516955799,0.2115216,94568.0,94567.0,0.2115197]
[1746516956200,0.2115216,94568.0,94567.0,0.3295197]
[1746516957608,0.2125216,94568.0,94567.0,0.3295197]
[1746516963109,0.2115216,94568.0,94567.0,0.3295197]
[1746516963305,0.2125216,94568.0,94567.0,0.3295197]
[1746516963711,0.2115216,94568.0,94567.0,0.3295197]
[1746516964006,0.2125216,94568.0,94567.0,0.3295197]
[1746516964408,0.001,94568.0,94567.0,0.3295197]
[1746516965501,0.06372,94586.0,94585.0,0.2114817]
[1746516965706,0.06724743,94590.0,94567.0,0.22374399]
[1746516965707,0.0328,94587.0,94586.0,0.2114794]
[1746516966010,0.0015,94590.0,94589.0,0.2114727]
[1746516966703,0.0341,94590.0,94589.0,0.2114727]
[1746516967105,0.0341,94590.0,94589.0,0.3294727]
[1746516967414,0.2455705,94590.0,94589.0,1.8294727]
[1746516968314,0.2515705,94590.0,94589.0,1.8304727]
[1746516969116,0.2515705,94590.0,94589.0,1.84091269]
[1746516969316,0.2565705,94590.0,94589.0,1.84997227]
[1746516969513,0.2565705,94590.0,94589.0,1.63849957]
[1746516970112,0.2565705,94590.0,94589.0,1.52049957]
[1746516972118,0.2565705,94590.0,94589.0,1.63849957]
[1746516973118,0.2565705,94590.0,94589.0,1.52049957]
[1746516974120,0.2565705,94590.0,94589.0,1.63849957]
[1746516975123,0.2565705,94590.0,94589.0,1.52049957]
[1746516975321,0.2565705,94590.0,94589.0,1.55349957]
[1746516978122,0.2565705,94590.0,94589.0,1.58589957]
[1746516982629,0.2565705,94590.0,94589.0,1.79737227]
[1746516983925,0.2565705,94590.0,94589.0,1.58589957]
[1746516984918,0.2565705,94590.0,94589.0,1.79737227]
[1746516985422,0.2565705,94590.0,94589.0,1.58589957]
[1746516985828,0.2885705,94590.0,94589.0,1.58589957]
[1746516987230,0.2885705,94590.0,94589.0,1.55289957]
[1746516987422,0.211504,94575.0,94567.0,0.3608]
[1746516987630,0.211504,94575.0,94559.0,0.06372]
[1746516987631,0.211504,94575.0,94574.0,0.37164017]
[1746516987832,0.211504,94575.0,94574.0,0.58314647]
[1746516988021,0.211504,94575.0,94574.0,2.08314647]
[1746516988730,0.211504,94575.0,94574.0,2.14884647]
[1746516988932,0.213504,94575.0,94574.0,2.14884647]
[1746516989832,0.215504,94575.0,94574.0,2.14884647]
[1746516991232,0.215504,94575.0,94574.0,2.1567707]
[1746516995135,0.333504,94575.0,94574.0,2.1567707]
[1746516996136,0.215504,94575.0,94574.0,2.1567707]
[1746516996327,0.215504,94575.0,94574.0,1.7959707]
[1746516997132,0.246704,94575.0,94574.0,1.7959707]
[1746517014550,0.246704,94575.0,94574.0,0.0187644]
[1746517014848,0.0528802,94568.0,94561.0,0.0325]
[1746517015046,0.0528852,94559.0,94546.0,0.0325]
[1746517015249,0.5723667,94547.0,94546.0,0.0325]
[1746517015450,0.2115689,94546.0,94545.0,0.1613819]
[1746517015647,0.2115823,94541.0,94540.0,0.2644778]
[1746517015852,0.2115823,94541.0,94540.0,0.2964778]
[1746517016153,0.3927823,94541.0,94540.0,0.2964778]
[1746517017051,0.3887823,94541.0,94540.0,0.31463877]
[1746517017252,0.3877823,94541.0,94540.0,0.31463877]
[1746517017456,0.1499,94541.0,94540.0,0.31463877]
[1746517017651,0.119,94541.0,94540.0,0.31963877]
[1746517018138,0.2115714,94545.0,94544.0,0.2115734]
[1746517019055,0.2115714,94545.0,94544.0,0.2750734]
[1746517019255,0.2115714,94545.0,94544.0,0.3930734]
[1746517019555,0.0312,94546.0,94545.0,0.2115712]
[1746517019749,0.2115622,94551.0,94548.0,0.0528909]
[1746517020052,0.2644527,94550.0,94549.0,0.32795]
[1746517020257,0.2115622,94550.0,94549.0,0.32795]
[1746517020466,0.2115622,94550.0,94549.0,0.36015]
[1746517020858,0.0832874,94555.0,94552.0,0.0528883]
[1746517021058,0.2427528,94554.0,94553.0,0.275051]
[1746517022859,0.2447528,94554.0,94553.0,0.275051]
[1746517023566,0.2497528,94554.0,94553.0,0.276051]
[1746517024165,0.2777528,94554.0,94553.0,0.242951]
[1746517025168,0.2777528,94554.0,94553.0,0.394051]
[1746517026064,0.2777528,94554.0,94553.0,0.276051]
[1746517027175,0.2477528,94554.0,94553.0,0.276051]
[1746517028176,0.005,94554.0,94553.0,0.754851]
[1746517028374,0.3608,94570.0,94566.0,0.0528805]
[1746517028566,0.3608,94570.0,94569.0,0.2115175]
[1746517029175,0.6055152,94570.0,94569.0,0.2115175]
[1746517030378,0.2467152,94570.0,94569.0,0.2115175]
[1746517030687,0.2487152,94570.0,94569.0,0.2115175]
[1746517031277,0.0372,94570.0,94569.0,0.2115175]
[1746517032279,0.2487152,94570.0,94569.0,0.2115175]
[1746517032577,0.004,94570.0,94569.0,0.2115175]
[1746517032777,0.2155152,94570.0,94569.0,0.2115175]
[1746517032968,0.004,94570.0,94569.0,0.2115175]
[1746517033575,0.0352,94570.0,94569.0,0.2115175]
[1746517034979,0.2467152,94570.0,94569.0,0.2115175]
[1746517036076,0.0352,94570.0,94569.0,0.2115175]
[1746517036275,0.2467152,94570.0,94569.0,0.2115175]
[1746517038179,0.0352,94570.0,94569.0,0.2115175]
[1746517038870,0.2467152,94570.0,94569.0,0.2115175]
[1746517040682,0.264425,94564.0,94563.0,0.2115217]
[1746517041281,0.2115409,94564.0,94563.0,0.2115217]
[1746517041790,0.2115409,94564.0,94563.0,0.2441217]
[1746517041977,0.2115409,94564.0,94563.0,0.2451217]
[1746517042674,0.2125409,94564.0,94563.0,0.2451217]
[1746517043479,0.2135409,94564.0,94563.0,0.2441217]
[1746517043677,0.2125409,94564.0,94563.0,0.2441217]
[1746517043877,0.2145409,94564.0,94563.0,0.2441217]
[1746517044283,0.2155409,94564.0,94563.0,0.2441217]
[1746517047278,0.004,94564.0,94563.0,0.2441217]
[1746517047586,0.2155286,94564.0,94563.0,0.2441217]
[1746517051892,0.004,94564.0,94563.0,0.2441217]
[1746517052187,0.0319,94579.0,94578.0,0.2114973]
[1746517052982,0.2433951,94579.0,94578.0,0.2114973]
[1746517053193,0.0319,94579.0,94578.0,0.3918973]
[1746517053378,0.0319,94579.0,94578.0,0.3938973]
[1746517053794,0.2433951,94579.0,94578.0,0.3938973]
[1746517053985,0.2473951,94579.0,94578.0,0.1507]
[1746517054293,0.3531271,94579.0,94578.0,0.119]
[1746517054582,0.7139271,94579.0,94578.0,0.119]
[1746517054784,0.7139271,94579.0,94569.0,0.0317]
[1746517054992,0.2115443,94557.0,94556.0,1.7977275]
[1746517055185,0.2115443,94557.0,94556.0,1.9157275]
[1746517055490,0.2644266,94559.0,94558.0,0.2115421]
[1746517056081,0.2644266,94559.0,94558.0,0.2448421]
[1746517056481,0.2644266,94559.0,94558.0,0.2779421]
[1746517056793,0.2644266,94559.0,94558.0,0.2799421]
[1746517057086,0.2644266,94559.0,94558.0,0.3979421]
[1746517058189,0.2644266,94559.0,94558.0,0.2799421]
[1746517058589,0.2654266,94559.0,94558.0,0.2779421]
[1746517059383,0.2674266,94559.0,94558.0,0.2779421]
[1746517059892,0.2684266,94559.0,94558.0,0.2779421]
[1746517060089,0.2684266,94559.0,94558.0,0.3959421]
[1746517061392,0.2155416,94559.0,94558.0,0.3959421]
[1746517062298,0.004,94559.0,94558.0,0.2779421]
[1746517063186,0.004,94559.0,94558.0,0.3959421]
[1746517064387,0.004,94559.0,94558.0,0.7567421]
[1746517065491,0.001,94559.0,94558.0,0.7567421]
[1746517065691,0.002,94559.0,94558.0,0.7567421]
[1746517070195,0.2135398,94559.0,94558.0,0.118]
[1746517070492,0.2115779,94542.0,94541.0,0.2418801]
[1746517070689,0.2115754,94544.0,94543.0,0.2115756]
[1746517071195,0.2115754,94544.0,94543.0,0.2418756]
[1746517072092,0.2115754,94544.0,94543.0,0.2438756]
[1746517073097,0.2115754,94544.0,94543.0,0.2418756]
[1746517073293,0.2125754,94544.0,94543.0,0.2448756]
[1746517074496,0.2125754,94544.0,94543.0,0.2418756]
[1746517075596,0.2125754,94544.0,94543.0,0.2115756]
[1746517077002,0.2125754,94544.0,94543.0,0.2435756]
[1746517077815,0.001,94544.0,94543.0,0.2435756]
[1746517078601,0.2125734,94544.0,94543.0,0.2435756]
[1746517080799,0.001,94544.0,94543.0,0.2435756]
[1746517081003,0.2125734,94544.0,94543.0,0.2435756]
[1746517081605,0.001,94544.0,94543.0,0.2435756]
[1746517082093,0.001,94544.0,94543.0,0.3915756]
[1746517082289,0.001,94544.0,94543.0,0.4973476]
[1746517082491,0.3608,94550.0,94549.0,0.2115622]
[1746517083002,0.0324,94559.0,94558.0,0.2115421]
[1746517083906,0.06392,94563.0,94562.0,0.2115331]
[1746517084100,0.0528796,94569.0,94564.0,0.2115286]
[1746517084101,0.272427,94565.0,94564.0,0.2115286]
[1746517084805,0.272427,94565.0,94564.0,0.2428286]
[1746517085309,0.277427,94565.0,94564.0,0.2428286]
[1746517086405,0.277427,94565.0,94564.0,1.7428286]
[1746517087100,0.282427,94565.0,94564.0,1.7438286]
[1746517091006,0.0709,94565.0,94564.0,1.7438286]
[1746517091208,0.2215264,94565.0,94564.0,1.7438286]
[1746517094315,0.2845264,94565.0,94564.0,1.7438286]
[1746517095512,0.2845264,94565.0,94564.0,0.2438286]
[1746517098220,0.6453264,94565.0,94564.0,0.2438286]
[1746517108724,0.6453264,94565.0,94564.0,0.0323]
[1746517108930,0.7510744,94565.0,94564.0,0.001]
[1746517109123,0.8690744,94565.0,94564.0,0.001]
[1746517109326,0.3705264,94565.0,94564.0,0.2125286]
[1746517109625,0.3395264,94565.0,94564.0,0.2125286]
[1746517110130,0.2215264,94565.0,94564.0,0.2125286]
[1746517110330,0.2215264,94565.0,94564.0,0.2753286]
[1746517111832,0.2165264,94565.0,94564.0,0.2753286]
[1746517112130,0.2185264,94565.0,94564.0,0.2753286]
[1746517112525,0.2185264,94565.0,94564.0,0.2433286]
[1746517112834,0.2155264,94565.0,94564.0,0.2423286]
[1746517113432,0.0528885,94553.0,94544.0,0.052893]
[1746517113732,0.2115577,94551.0,94550.0,0.24306]
[1746517114228,0.0323,94551.0,94546.0,0.0528921]
[1746517114531,0.2115667,94547.0,94546.0,0.2115637]
[1746517114730,0.2085667,94547.0,94546.0,0.2430637]
[1746517115432,0.2085667,94547.0,94546.0,0.2450637]
[1746517115836,0.2414667,94547.0,94546.0,0.2768637]
[1746517116334,0.2414667,94547.0,94546.0,0.2788637]
[1746517116532,0.2085667,94547.0,94546.0,0.2788637]
[1746517117230,0.2085667,94547.0,94546.0,0.2748637]
[1746517117420,0.2145667,94547.0,94546.0,0.2748637]
[1746517117835,0.2115667,94547.0,94546.0,0.2748637]
[1746517118032,0.2145667,94547.0,94546.0,0.2748637]
[1746517120434,0.2175667,94547.0,94546.0,0.2748637]
[1746517122231,0.2175667,94547.0,94546.0,0.3928637]
[1746517123135,0.2175667,94547.0,94546.0,0.2748637]
[1746517124135,0.006,94547.0,94546.0,0.3928637]
[1746517124340,0.2175667,94547.0,94546.0,0.3928637]
[1746517125235,0.2175667,94547.0,94546.0,0.2748637]
[1746517127139,0.006,94547.0,94546.0,0.2748637]
[1746517127733,0.2175667,94547.0,94546.0,0.2748637]
[1746517128039,0.006,94547.0,94546.0,0.2748637]
[1746517128336,0.006,94547.0,94546.0,0.3928637]
[1746517129538,0.2175667,94547.0,94546.0,0.3928637]
[1746517130247,0.2175667,94547.0,94546.0,0.2748637]
[1746517131936,0.0528944,94543.0,94523.0,0.0529047]
[1746517132137,0.2115913,94536.0,94525.0,0.0529038]
[1746517132341,0.2115913,94536.0,94530.0,0.06341456]
[1746517132546,0.2115913,94536.0,94531.0,0.2116009]
[1746517132746,0.2115913,94536.0,94530.0,0.01051356]
[1746517132929,0.2746913,94536.0,94531.0,0.2116015]
[1746517133131,0.2746913,94536.0,94530.0,0.01051356]
[1746517133333,0.2746913,94536.0,94530.0,0.22211626]
[1746517133534,0.2746913,94536.0,94531.0,0.2116024]
[1746517133942,0.2746913,94536.0,94532.0,0.2116001]
[1746517134546,0.2746913,94536.0,94533.0,0.2115974]
[1746517134744,0.2776913,94536.0,94527.0,0.2428108]
[1746517135045,0.2776913,94536.0,94529.0,0.2116064]
[1746517135239,0.2806913,94536.0,94528.0,0.2417081]
[1746517135542,0.211607,94529.0,94528.0,0.0301]
[1746517135737,0.275607,94529.0,94528.0,0.2417092]
[1746517136342,0.336107,94529.0,94528.0,0.2417092]
[1746517136745,0.337107,94529.0,94528.0,0.2417092]
[1746517137436,0.338107,94529.0,94528.0,0.2417092]
[1746517139641,0.698907,94529.0,94528.0,0.2417092]
[1746517139845,0.698907,94529.0,94528.0,0.0301]
[1746517140843,0.698907,94529.0,94528.0,0.2417092]
[1746517141042,0.698907,94529.0,94528.0,0.0301]
[1746517143144,0.2116137,94526.0,94525.0,0.01042215]
[1746517143451,0.2645389,94520.0,94517.0,0.0529081]
[1746517143644,0.2428294,94519.0,94518.0,0.0618]
[1746517143949,0.6356294,94519.0,94518.0,0.0311]
[1746517144162,0.6674294,94519.0,94518.0,0.0311]
[1746517144354,0.2116473,94511.0,94510.0,0.0080535]
[1746517144539,0.6364473,94511.0,94510.0,0.0080535]
[1746517145147,0.210654,94508.0,94507.0,0.2116551]
[1746517145348,0.210654,94508.0,94507.0,0.2734551]
[1746517146046,0.242654,94508.0,94507.0,0.2734551]
[1746517146245,0.242654,94508.0,94507.0,0.3914551]
[1746517147148,0.245654,94508.0,94507.0,0.3914551]
[1746517147751,0.248654,94508.0,94507.0,0.3914551]
[1746517148145,0.248654,94508.0,94507.0,0.0618]
[1746517148851,0.281754,94508.0,94507.0,0.2734562]
[1746517151665,0.216654,94508.0,94507.0,0.0618]
[1746517151844,0.216654,94508.0,94507.0,0.2734562]
[1746517151845,0.277654,94508.0,94507.0,0.2734562]
[1746517152553,0.277654,94508.0,94507.0,0.0618]
[1746517152944,0.277654,94508.0,94507.0,0.2734562]
[1746517153146,0.277654,94508.0,94507.0,0.3914562]
[1746517153347,0.246954,94508.0,94507.0,0.1798]
[1746517153549,0.308954,94508.0,94507.0,0.3914562]
[1746517153748,0.308954,94508.0,94507.0,0.1798]
[1746517154153,0.308954,94508.0,94507.0,0.0618]
[1746517154553,0.308954,94508.0,94507.0,0.2734562]
[1746517154857,0.246954,94508.0,94507.0,0.2734562]
[1746517155346,0.0529179,94501.0,94473.0,0.4137326]
[1746517155545,0.2116764,94498.0,94497.0,0.0309]
[1746517155742,0.2116764,94498.0,94487.0,0.3175326]
[1746517155743,0.2117033,94488.0,94487.0,0.3175326]
[1746517156145,0.2117033,94488.0,94487.0,0.3826078]
[1746517156856,0.2117033,94488.0,94487.0,0.3846078]
[1746517157357,0.2117033,94488.0,94487.0,0.39536934]
[1746517158355,0.2117033,94488.0,94487.0,0.39736934]
[1746517159657,0.2117033,94488.0,94487.0,0.42946934]
[1746517161053,0.2117033,94488.0,94487.0,0.37654714]
[1746517163862,0.2117033,94488.0,94487.0,0.37656254]
[1746517165565,0.2117033,94488.0,94487.0,0.1541]
[1746517165862,0.3431033,94488.0,94487.0,0.122]
[1746517166249,0.2117257,94476.0,94475.0,0.00105848]
[1746517166561,0.6364857,94476.0,94475.0,0.00105848]
[1746517167254,0.6364857,94476.0,94475.0,0.11905848]
[1746517167455,0.6990857,94476.0,94475.0,0.33978638]
[1746517168250,0.6990857,94476.0,94475.0,0.12805848]
[1746517168456,0.7990857,94476.0,94475.0,0.12805848]
[1746517169354,0.7990857,94476.0,94475.0,0.01005848]
[1746517172358,0.2117436,94468.0,94467.0,0.00158785]
[1746517172555,0.5725436,94468.0,94467.0,0.00158785]
[1746517173266,0.6365436,94468.0,94467.0,0.00158785]
[1746517173669,0.6375436,94468.0,94467.0,0.00658785]
[1746517173863,0.6385436,94468.0,94467.0,0.01058785]
[1746517175063,0.6385436,94468.0,94467.0,0.12858785]
[1746517176161,0.6385436,94468.0,94467.0,0.01058785]
[1746517177163,0.6385436,94468.0,94467.0,0.12858785]
[1746517178269,0.6385436,94468.0,94467.0,0.01058785]
[1746517179174,0.6385436,94468.0,94467.0,0.12858785]
[1746517179672,0.6375436,94468.0,94467.0,0.12358785]
[1746517179974,0.6415436,94468.0,94467.0,0.12358785]
[1746517180474,0.6445436,94468.0,94467.0,0.12058785]
[1746517183477,0.6445436,94468.0,94462.0,0.0626]
[1746517183478,0.2117548,94463.0,94462.0,0.0307]
[1746517183778,0.06428,94463.0,94456.0,0.0332]
[1746517183970,0.5725683,94457.0,94456.0,0.0634]
[1746517184173,0.5725683,94457.0,94456.0,0.1814]
[1746517184777,0.5715683,94457.0,94456.0,0.1814]
[1746517184978,0.6027683,94457.0,94456.0,0.1814]
[1746517185882,0.0529454,94452.0,94445.0,0.00105881]
[1746517186073,0.5725884,94448.0,94447.0,0.2450907]
[1746517186376,0.2117929,94446.0,94445.0,0.11905881]
[1746517186571,0.2118041,94441.0,94440.0,0.0333]
[1746517186771,0.2108041,94441.0,94440.0,0.0333]
[1746517187170,0.2098041,94441.0,94440.0,0.1513]
[1746517187778,0.2399041,94441.0,94440.0,0.118]
[1746517188472,0.2409041,94441.0,94440.0,0.12]
[1746517188877,0.2409041,94441.0,94440.0,0.123]
[1746517189676,0.2409041,94441.0,94440.0,0.3348064]
[1746517189974,0.2409041,94441.0,94440.0,0.123]
[1746517190682,0.2409041,94441.0,94440.0,0.3348064]
[1746517191983,0.2409041,94441.0,94440.0,0.3328064]
[1746517192580,0.2409041,94441.0,94440.0,0.121]
[1746517192884,0.2409041,94441.0,94440.0,0.119]
[1746517193279,0.2409041,94441.0,94440.0,0.1812]
[1746517194787,0.3051841,94441.0,94440.0,0.3930064]
[1746517195285,0.3051841,94441.0,94440.0,0.1812]
[1746517195485,0.3051841,94441.0,94440.0,0.119]
[1746517197488,0.3071841,94441.0,94440.0,0.12]
[1746517198287,0.3071841,94441.0,94440.0,0.119]
[1746517198582,0.3081841,94441.0,94440.0,0.119]
[1746517199884,0.2118198,94434.0,94433.0,0.032]
[1746517200083,0.5726198,94434.0,94433.0,0.15]
[1746517200293,0.5726198,94434.0,94433.0,0.1822]
[1746517200984,0.5726198,94434.0,94433.0,0.118]
[1746517201181,0.6048198,94434.0,94433.0,0.119]
[1746517201581,0.6048198,94434.0,94433.0,0.12]
[1746517202276,0.6048198,94434.0,94433.0,0.0533464]
[1746517203484,0.6048198,94434.0,94424.0,0.0322]
[1746517203485,0.5295604,94433.0,94396.0,0.1614639]
[1746517203691,0.933458,94417.0,94416.0,0.031]
[1746517203884,0.997778,94417.0,94416.0,0.031]
[1746517204093,0.2118602,94416.0,94406.0,1.5]
[1746517204391,0.2733602,94416.0,94408.0,0.2118768]
[1746517204593,0.2733602,94416.0,94409.0,0.2118752]
[1746517204783,0.2733602,94416.0,94415.0,0.00305915]
[1746517205178,0.2388602,94416.0,94415.0,0.12105915]
[1746517205584,0.2388602,94416.0,94415.0,0.11905915]
[1746517205784,0.2398602,94416.0,94415.0,0.12305915]
[1746517207185,0.2398602,94416.0,94415.0,0.15565915]
[1746517208393,0.2398602,94416.0,94415.0,0.36752165]
[1746517208796,0.2478602,94416.0,94415.0,0.36452165]
[1746517209182,0.2815002,94416.0,94415.0,0.36452165]
[1746517209793,0.6423002,94416.0,94415.0,0.36452165]
[1746517211393,0.2815002,94416.0,94415.0,0.36452165]
[1746517211598,0.009,94416.0,94415.0,0.36452165]
[1746517211893,0.2208602,94416.0,94415.0,0.36452165]
[1746517212501,0.009,94416.0,94415.0,0.36452165]
[1746517212995,0.2208602,94416.0,94415.0,0.36452165]
[1746517213796,0.009,94416.0,94415.0,0.36452165]
[1746517215291,0.2208602,94416.0,94415.0,0.36452165]
[1746517215593,0.009,94416.0,94415.0,0.36452165]
[1746517216297,0.2208602,94416.0,94415.0,0.36452165]
[1746517216796,0.009,94416.0,94415.0,0.36452165]
[1746517216996,0.2208602,94416.0,94415.0,0.36452165]
[1746517218005,0.009,94416.0,94415.0,0.36452165]
[1746517220493,0.009,94416.0,94415.0,1.86452165]
[1746517223108,0.06464,94430.0,94429.0,0.2118311]
[1746517223602,0.2764688,94430.0,94429.0,0.2118311]
[1746517223994,0.2764688,94430.0,94429.0,0.2424311]
[1746517224194,0.2764688,94430.0,94429.0,0.3604311]
[1746517224403,0.2834688,94430.0,94429.0,0.3933311]
[1746517225402,0.2884688,94430.0,94429.0,0.3943311]
[1746517230505,0.2238288,94430.0,94429.0,0.3943311]
[1746517232305,0.012,94430.0,94429.0,0.3943311]
[1746517232502,0.2647637,94441.0,94440.0,0.2118019]
[1746517233102,0.2647637,94441.0,94440.0,1.7118019]
[1746517233304,0.2647637,94441.0,94440.0,1.8943019]
[1746517234108,0.2697637,94441.0,94440.0,1.8953019]
[1746517235004,0.2757637,94441.0,94440.0,1.8963019]
[1746517235804,0.2228122,94441.0,94440.0,1.90682836]
[1746517236507,0.2556122,94441.0,94440.0,1.90682836]
[1746517241514,0.2556122,94441.0,94440.0,1.69502646]
[1746517241718,0.2556122,94441.0,94440.0,1.63052646]
[1746517242121,0.2556122,94441.0,94440.0,0.34233286]
[1746517248327,0.6164122,94441.0,94440.0,0.34233286]
[1746517248824,0.6164122,94441.0,94440.0,0.13052646]
[1746517249627,0.6164122,94441.0,94440.0,0.34233286]
[1746517251727,0.6477122,94441.0,94440.0,0.34233286]
[1746517252727,0.6477122,94441.0,94440.0,0.37293286]
[1746517261434,0.6477122,94441.0,94440.0,0.16112646]
[1746517261640,0.6477122,94441.0,94440.0,0.12]
[1746517284257,0.6477122,94441.0,94440.0,0.0733089]
[1746517284458,0.6477122,94441.0,94440.0,1e-07]
[1746517285250,0.6477122,94441.0,94440.0,0.1180001]
[1746517287161,0.6477122,94441.0,94440.0,0.0891593]
[1746517288158,0.2118288,94430.0,94429.0,0.0332]
[1746517288358,0.6371088,94430.0,94429.0,0.0332]
[1746517288862,0.7010088,94430.0,94429.0,0.0332]
[1746517289058,0.7010088,94430.0,94429.0,0.1512]
[1746517289458,0.7010088,94430.0,94429.0,0.1522]
[1746517289761,0.7080088,94430.0,94429.0,0.1522]
[1746517293074,0.6441088,94430.0,94429.0,0.1522]
[1746517294471,0.6441088,94430.0,94429.0,0.218]
[1746517297477,0.6441088,94430.0,94429.0,0.4298311]
[1746517297683,0.6441088,94430.0,94429.0,0.218]
[1746517300875,0.6758088,94430.0,94429.0,0.218]
[1746517301179,0.67565121,94430.0,94429.0,0.218]
[1746517301474,0.64395121,94430.0,94429.0,0.218]
[1746517304678,0.67565121,94430.0,94429.0,0.218]
[1746517306581,0.64395121,94430.0,94429.0,0.218]
[1746517307981,0.28315121,94430.0,94429.0,0.4298311]
[1746517308578,0.28315121,94430.0,94429.0,1.9298311]
[1746517310082,0.21867121,94430.0,94429.0,1.9298311]
[1746517316278,0.007,94430.0,94429.0,1.9298311]
[1746517319391,0.032,94439.0,94438.0,0.2118109]
[1746517319585,0.2438086,94439.0,94438.0,0.2118109]
[1746517319986,0.2438086,94439.0,94438.0,0.2750109]
[1746517320186,0.2438086,94439.0,94438.0,0.3930109]
[1746517320894,0.2488086,94439.0,94438.0,0.3940109]
[1746517321903,0.2488086,94439.0,94438.0,0.3950109]
[1746517322200,0.2538086,94439.0,94438.0,0.3950109]
[1746517323487,0.2838086,94439.0,94438.0,0.3950109]
[1746517323897,0.072,94439.0,94438.0,0.3950109]
[1746517324097,0.2838086,94439.0,94438.0,0.3950109]
[1746517324292,0.2838086,94439.0,94438.0,0.0935004]
[1746517324491,0.2838086,94439.0,94438.0,0.3053113]
[1746517344007,0.2838086,94439.0,94438.0,0.0935004]
[1746517345106,0.2838086,94439.0,94438.0,0.3053113]
[1746517368230,0.2838086,94439.0,94438.0,0.0935004]
[1746517370527,0.2838086,94439.0,94438.0,0.3053113]
[1746517384446,0.2838086,94439.0,94438.0,0.0935004]
[1746517384744,0.2838086,94439.0,94438.0,0.3053113]
[1746517384944,0.2838086,94439.0,94438.0,0.0935004]
[1746517385348,0.2838086,94439.0,94438.0,0.3053113]
[1746517388136,0.2838086,94439.0,94438.0,0.0935004]
[1746517396858,0.2838086,94439.0,94438.0,0.3053113]
[1746517398364,0.2538086,94439.0,94438.0,0.3053113]
[1746517398751,0.2538086,94439.0,94438.0,0.3360113]
[1746517399156,0.2838086,94439.0,94438.0,0.3360113]
[1746517410670,0.2838086,94439.0,94438.0,0.3665113]
[1746517413775,0.2838086,94439.0,94438.0,0.3360113]
[1746517418470,0.2838086,94439.0,94438.0,0.3674113]
[1746517429688,0.2838086,94439.0,94438.0,0.3360113]
[1746517431786,0.2838086,94439.0,94438.0,0.3053113]
[1746517452693,0.2838086,94439.0,94438.0,0.3358113]
[1746517467413,0.2838086,94439.0,94438.0,0.3053113]
[1746517468212,0.2838086,94439.0,94438.0,0.3371113]
[1746517468715,0.072,94439.0,94438.0,0.3371113]
[1746517469013,0.042,94439.0,94438.0,0.3371113]
[1746517469215,0.042,94439.0,94438.0,0.3692113]
[1746517470007,0.2538086,94439.0,94438.0,1.8692113]
[1746517472821,0.2538086,94439.0,94438.0,1.5935004]
[1746517473119,0.2856086,94439.0,94438.0,1.5935004]
[1746517476214,0.2836086,94439.0,94438.0,1.5925004]
[1746517476405,0.2786086,94439.0,94438.0,1.5915004]
[1746517476607,0.2816086,94439.0,94438.0,1.5915004]
[1746517477020,0.2826086,94439.0,94438.0,1.5925004]
[1746517477515,0.2796086,94439.0,94438.0,1.5925004]
[1746517477715,0.2836086,94439.0,94438.0,1.5925004]
[1746517480017,0.3099086,94439.0,94438.0,1.5915004]